[Event "48th Indian U15-ch Girls 2023"]
[Site "Jalgaon"]
[Date "2024.01.01"]
[Round "8.9"]
[White "Magizhini M"]
[Black "Anupam M Sreekumar"]
[Result "0-1"]
[ECO "B43"]
[WhiteElo "1389"]
[BlackElo "1642"]
[Annotator "NA RC COMBH"]
[PlyCount "82"]
[EventDate "2023.12.30"]
[EventType "swiss"]
[EventCountry "IND"]
[SourceTitle "playchess.com"]
[Source "ChessBase"]
[SourceQuality "1"]
[TimeControl "5400+30"]

1. e4 {[%emt 0:00:30]} c5 {[%emt 0:00:32]} 2. Nf3 {[%emt 0:00:09]} e6 {[%emt 0:00:07]} 3. d4 {[%emt 0:00:06]} cxd4 {[%emt 0:00:07]} 4. Nxd4 {[%emt 0:00:02]} a6 {[%emt 0:00:12]} 5. Nc3 {[%emt 0:01:01]} b5 {[%emt 0:00:27]} 6. Be3 {[%emt 0:00:37]} Bb7 {[%emt 0:00:34]} 7. f3 {[%emt 0:00:09]} Qc7 {[%emt 0:01:29]} 8. Bd3 {[%emt 0:02:01]} Nf6 {[%emt 0:02:35]} 9. a3 {[%emt 0:04:14]} Bc5 {[%emt 0:03:46]} 10. Qd2 {[%emt 0:02:19]} O-O {[%emt 0:01:30]} 11. Nb3 {[%emt 0:06:42]} Bxe3 {[%emt 0:05:59]} 12. Qxe3 {[%emt 0:00:12]} d6 {[%emt 0:00:15]} 13. O-O-O {[%emt 0:01:51]} Nc6 {[%emt 0:02:44]} 14. Na2 {[%emt 0:02:21]} Ne5 {[%emt 0:02:26]} 15. g4 {[%emt 0:01:26]} d5 {[%emt 0:05:16]} 16. g5 {[%emt 0:04:12]} Nfd7 {[%emt 0:02:15]} 17. Nc3 {[%emt 0:05:23]} Nxd3+ {[%emt 0:10:20]} 18. Qxd3 {[%emt 0:01:36]} Ne5 {[%emt 0:00:36]} 19. Qe2 {[%emt 0:00:42]} dxe4 {[%emt 0:02:07]} 20. Nxe4 {[%emt 0:02:00]} Rac8 {[%emt 0:01:13]} 21. Rhf1 {[%emt 0:03:38]} Bd5 {[%emt 0:02:33]} 22. Nd4 {[%emt 0:12:15]} Bc4 {[%emt 0:02:40]} 23. Qe3 {[%emt 0:02:23]} Bxf1 {[%emt 0:00:57]} 24. Rxf1 {[%emt 0:00:30]} Nc4 {[%emt 0:03:12]} 25. Qe2 {[%emt 0:02:22]} Qf4+ {[%emt 0:00:59]} 26. Kb1 {[%emt 0:01:12]} Rfd8 {[%emt 0:00:26]} 27. Nb3 {[%emt 0:03:04]} a5 {[%emt 0:01:54]} 28. Rg1 {[%emt 0:03:03]} a4 {[%emt 0:02:38]} 29. Nbc5 {[%emt 0:01:41]} Nd2+ {[%emt 0:00:48]} 30. Ka1 {[%emt 0:03:41]} Qxf3 {[%emt 0:01:27]} 31. Qe1 {[%emt 0:04:10]} Nxe4 {[%emt 0:02:55]} 32. Nxe4 {[%emt 0:00:19]} Rxc2 {[%emt 0:00:19]} 33. Nc3 {[%emt 0:03:56]} b4 {[%emt 0:01:46]} 34. Rg3 {[%emt 0:03:52]} Qf4 {[%emt 0:00:57]} 35. Qb1 {[%emt 0:04:11]} Rc1 {[%emt 0:00:57]} 36. axb4 {[%emt 0:00:30]} Rxb1+ {[%emt 0:00:24]} 37. Kxb1 {[%emt 0:00:02]} Qxb4 {[%emt 0:00:08]} 38. Ka2 {[%emt 0:00:26]} Rd2 {[%emt 0:00:17]} 39. Nxa4 {[%emt 0:00:22]} Qxa4+ {[%emt 0:00:07]} 40. Ra3 {[%emt 0:00:05]} Qc4+ {[%emt 0:00:05]} 41. Rb3 {[%emt 0:00:03]} Rd3 {[%emt 0:00:09]} 0-1

[Event "48th Indian U15-ch Girls 2023"]
[Site "Jalgaon"]
[Date "2024.01.01"]
[Round "8.10"]
[White "Sahana, Shainsha"]
[Black "Drishtee Ghosh"]
[Result "0-1"]
[ECO "A19"]
[WhiteElo "1300"]
[BlackElo "1605"]
[Annotator "NA RC COMBH"]
[PlyCount "162"]
[EventDate "2023.12.30"]
[EventType "swiss"]
[EventCountry "IND"]
[SourceTitle "playchess.com"]
[Source "ChessBase"]
[SourceQuality "1"]
[TimeControl "5400+30"]

1. c4 {[%emt 0:00:30]} c5 {[%emt 0:00:30]} 2. Nc3 {[%emt 0:00:30]} Nf6 {[%emt 0:00:30]} 3. g3 {[%emt 0:00:30]} e6 {[%emt 0:00:30]} 4. e4 {[%emt 0:00:30]} d5 {[%emt 0:00:30]} 5. exd5 {[%emt 0:00:30]} exd5 {[%emt 0:00:30]} 6. cxd5 {[%emt 0:00:30]} Nxd5 {[%emt 0:00:30]} 7. d4 {[%emt 0:00:30]} Nxc3 {[%emt 0:00:30]} 8. bxc3 {[%emt 0:00:30]} cxd4 {[%emt 0:00:30]} 9. Qxd4 {[%emt 0:00:30]} Be7 {[%emt 0:00:30]} 10. Qxd8+ {[%emt 0:00:30]} Bxd8 {[%emt 0:00:30]} 11. Bg2 {[%emt 0:00:30]} O-O {[%emt 0:00:30]} 12. Be3 {[%emt 0:00:30]} Nd7 {[%emt 0:00:30]} 13. Ne2 {[%emt 0:00:30]} Bb6 {[%emt 0:00:30]} 14. Bd4 {[%emt 0:00:30]} Re8 {[%emt 0:00:30]} 15. f4 {[%emt 0:00:30]} Bxd4 {[%emt 0:00:30]} 16. cxd4 {[%emt 0:00:30]} Nf6 {[%emt 0:00:30]} 17. h3 {[%emt 0:00:30]} Ne4 {[%emt 0:00:30]} 18. O-O {[%emt 0:00:30]} Bd7 {[%emt 0:00:30]} 19. Kh2 {[%emt 0:00:30]} Rad8 {[%emt 0:00:30]} 20. Rfe1 {[%emt 0:00:30]} Bc6 {[%emt 0:00:30]} 21. Rac1 {[%emt 0:00:30]} Kf8 {[%emt 0:00:30]} 22. g4 {[%emt 0:00:30]} Re7 {[%emt 0:00:30]} 23. Ng3 {[%emt 0:00:30]} Nxg3 {[%emt 0:00:30]} 24. Rxe7 {[%emt 0:00:30]} Kxe7 {[%emt 0:00:30]} 25. Bxc6 {[%emt 0:00:30]} Nf1+ {[%emt 0:00:30]} 26. Kg1 {[%emt 0:00:30]} bxc6 {[%emt 0:00:30]} 27. Kxf1 {[%emt 0:00:30]} Rxd4 {[%emt 0:00:30]} 28. Rxc6 {[%emt 0:00:30]} Rxf4+ {[%emt 0:00:30]} 29. Ke2 {[%emt 0:00:30]} Ra4 {[%emt 0:00:30]} 30. Rc2 {[%emt 0:00:30]} Kf6 {[%emt 0:00:30]} 31. Kf3 {[%emt 0:00:30]} g6 {[%emt 0:00:30]} 32. h4 {[%emt 0:00:30]} h6 {[%emt 0:00:30]} 33. Re2 {[%emt 0:00:30]} Ra3+ {[%emt 0:00:30]} 34. Kg2 {[%emt 0:00:30]} Ra5 {[%emt 0:00:30]} 35. Kf3 {[%emt 0:00:30]} h5 {[%emt 0:00:30]} 36. g5+ {[%emt 0:00:30]} Kf5 {[%emt 0:00:30]} 37. Kg3 {[%emt 0:00:30]} Ra3+ {[%emt 0:00:30]} 38. Kg2 {[%emt 0:00:30]} Rd3 {[%emt 0:00:30]} 39. Kh2 {[%emt 0:00:30]} a6 {[%emt 0:00:30]} 40. Kg2 {[%emt 0:00:30]} Rd4 {[%emt 0:00:30]} 41. Kg3 {[%emt 0:00:30]} Rd3+ {[%emt 0:00:30]} 42. Kg2 {[%emt 0:00:30]} a5 {[%emt 0:00:30]} 43. Rc2 {[%emt 0:00:30]} Rd5 {[%emt 0:00:30]} 44. Kf3 {[%emt 0:00:30]} Rd3+ {[%emt 0:00:30]} 45. Kg2 {[%emt 0:00:30]} Ke6 {[%emt 0:00:30]} 46. Rb2 {[%emt 0:00:30]} Rd5 {[%emt 0:00:30]} 47. Rb6+ {[%emt 0:00:30]} Ke7 {[%emt 0:00:30]} 48. Rb7+ {[%emt 0:00:30]} Rd7 {[%emt 0:00:30]} 49. Rb2 {[%emt 0:00:30]} Kd8 {[%emt 0:00:30]} 50. Kf3 {[%emt 0:00:30]} Rd5 {[%emt 0:00:30]} 51. Rb3 {[%emt 0:00:30]} Kc7 {[%emt 0:00:30]} 52. Ke4 {[%emt 0:00:30]} Rf5 {[%emt 0:00:30]} 53. a4 {[%emt 0:00:30]} Rf1 {[%emt 0:00:30]} 54. Rb5 {[%emt 0:00:30]} Rh1 {[%emt 0:00:30]} 55. Rxa5 {[%emt 0:00:30]} Rxh4+ {[%emt 0:00:30]} 56. Ke5 {[%emt 0:00:30]} Kb6 {[%emt 0:00:30]} 57. Ra8 {[%emt 0:00:30]} Rg4 {[%emt 0:00:30]} 58. Kf6 {[%emt 0:00:30]} Rf4+ {[%emt 0:00:30]} 59. Kg7 {[%emt 0:00:30]} Rf5 {[%emt 0:00:30]} 60. Rh8 {[%emt 0:00:30]} Rxg5 {[%emt 0:00:30]} 61. Kxf7 {[%emt 0:00:30]} Rg4 {[%emt 0:00:30]} 62. Kf6 {[%emt 0:00:30]} h4 {[%emt 0:00:30]} 63. Ke5 {[%emt 0:00:30]} Rxa4 {[%emt 0:00:30]} 64. Rh6 {[%emt 0:00:30]} Rg4 {[%emt 0:00:30]} 65. Kd5 {[%emt 0:00:30]} Kb5 {[%emt 0:00:30]} 66. Rh8 {[%emt 0:00:30]} Kb4 {[%emt 0:00:30]} 67. Ke5 {[%emt 0:00:30]} Kc3 {[%emt 0:00:30]} 68. Rc8+ {[%emt 0:00:30]} Kd2 {[%emt 0:00:30]} 69. Rh8 {[%emt 0:00:30]} Ke3 {[%emt 0:00:30]} 70. Ra8 {[%emt 0:00:30]} g5 {[%emt 0:00:30]} 71. Ra3+ {[%emt 0:00:30]} Kf2 {[%emt 0:00:30]} 72. Kf5 {[%emt 0:00:30]} Rg3 {[%emt 0:00:30]} 73. Ra2+ {[%emt 0:00:30]} Kg1 {[%emt 0:00:30]} 74. Ra1+ {[%emt 0:00:30]} Kh2 {[%emt 0:00:30]} 75. Ra2+ {[%emt 0:00:30]} Rg2 {[%emt 0:00:30]} 76. Ra1 {[%emt 0:00:30]} g4 {[%emt 0:00:30]} 77. Kf4 {[%emt 0:00:30]} g3 {[%emt 0:00:30]} 78. Kg4 {[%emt 0:00:30]} h3 {[%emt 0:00:30]} 79. Ra3 {[%emt 0:00:30]} Rf2 {[%emt 0:00:30]} 80. Kh4 {[%emt 0:00:30]} Rf4+ {[%emt 0:00:30]} 81. Kg5 {[%emt 0:00:30]} g2 {[%emt 0:00:30]} 0-1

[Event "48th Indian U15-ch Girls 2023"]
[Site "Jalgaon"]
[Date "2024.01.02"]
[Round "9.1"]
[White "Mrittika Mallick"]
[Black "Shubhi Gupta"]
[Result "1-0"]
[ECO "C54"]
[WhiteElo "1970"]
[BlackElo "1902"]
[Annotator "RC"]
[PlyCount "65"]
[EventDate "2023.12.30"]
[EventType "swiss"]
[EventCountry "IND"]
[SourceTitle "playchess.com"]
[Source "ChessBase"]
[SourceQuality "1"]
[TimeControl "5400+30"]

1. e4 {[%emt 0:00:02]} e5 {[%emt 0:02:14]} 2. Nf3 {[%emt 0:00:07]} Nc6 {[%emt 0:00:14]} 3. Bc4 {[%emt 0:00:10]} Bc5 {[%emt 0:00:13]} 4. O-O {[%emt 0:00:37]} Nf6 {[%emt 0:00:50]} 5. d3 {[%emt 0:00:17]} d6 {[%emt 0:00:19]} 6. c3 {[%emt 0:00:30]} O-O {[%emt 0:00:44]} 7. a4 {[%emt 0:00:25]} a5 {[%emt 0:01:27]} 8. Bg5 {[%emt 0:01:35]} h6 {[%emt 0:01:26]} 9. Bh4 {[%emt 0:00:15]} g5 {[%emt 0:02:29]} 10. Bg3 {[%emt 0:00:10]} Bb6 {[%emt 0:01:26]} 11. Nbd2 {[%emt 0:03:16]} Nh7 {[%emt 0:02:25]} 12. Bb3 {[%emt 0:11:21]} h5 {[%emt 0:02:25]} 13. h4 {[%emt 0:01:08]} g4 {[%emt 0:02:20]} 14. Nh2 {[%emt 0:02:54]} Ne7 {[%emt 0:02:38]} 15. Nc4 {[%emt 0:02:02]} Ba7 {[%emt 0:08:25]} 16. d4 {[%emt 0:07:47]} exd4 {[%emt 0:02:46]} 17. cxd4 {[%emt 0:00:51]} Ng6 {[%emt 0:01:06]} 18. Qd2 {[%emt 0:12:21]} Kg7 {[%emt 0:12:56]} 19. Qxa5 {[%emt 0:04:58]} Be6 {[%emt 0:04:02]} 20. Qc3 {[%emt 0:04:44]} Bxc4 {[%emt 0:05:39]} 21. Qxc4 {[%emt 0:01:06]} Nxh4 {[%emt 0:01:37]} 22. f3 {[%emt 0:01:57]} Ng6 {[%emt 0:01:16]} 23. fxg4 {[%emt 0:02:05]} Qg5 {[%emt 0:02:17]} 24. Rf5 {[%emt 0:02:25]} Qe3+ {[%emt 0:02:24]} 25. Bf2 {[%emt 0:00:49]} Qxe4 {[%emt 0:00:09]} 26. Rxf7+ {[%emt 0:00:43]} Rxf7 {[%emt 0:00:59]} 27. Qxf7+ {[%emt 0:00:07]} Kh8 {[%emt 0:00:02]} 28. Re1 {[%emt 0:06:21]} Qd3 {[%emt 0:00:34]} 29. gxh5 {[%emt 0:02:39]} Rf8 {[%emt 0:00:34]} 30. Qxg6 {[%emt 0:00:37]} Qxb3 {[%emt 0:02:46]} 31. Re7 {[%emt 0:00:16]} Qg8 {[%emt 0:02:10]} 32. Ng4 {[%emt 0:01:27]} Rc8 {[%emt 0:03:08]} 33. Nh6 {[%emt 0:00:22]} 1-0

[Event "48th Indian U15-ch Girls 2023"]
[Site "Jalgaon"]
[Date "2024.01.02"]
[Round "9.2"]
[White "Sherali Pattnaik"]
[Black "Bhat Sannidhi Ramakrishna"]
[Result "1/2-1/2"]
[ECO "B01"]
[WhiteElo "1575"]
[BlackElo "1637"]
[Annotator "NA RC"]
[PlyCount "126"]
[EventDate "2023.12.30"]
[EventType "swiss"]
[EventCountry "IND"]
[SourceTitle "playchess.com"]
[Source "ChessBase"]
[SourceQuality "1"]
[TimeControl "5400+30"]

1. e4 {[%emt 0:02:32]} d5 {[%emt 0:00:22]} 2. exd5 {[%emt 0:00:05]} Qxd5 {[%emt 0:00:09]} 3. Nc3 {[%emt 0:00:03]} Qa5 {[%emt 0:00:15]} 4. d4 {[%emt 0:00:09]} Nf6 {[%emt 0:00:19]} 5. Nf3 {[%emt 0:00:04]} Bf5 {[%emt 0:00:28]} 6. Bc4 {[%emt 0:00:15]} e6 {[%emt 0:00:20]} 7. Bd2 {[%emt 0:00:13]} Bb4 {[%emt 0:00:40]} 8. a3 {[%emt 0:06:29]} Bxc3 {[%emt 0:00:13]} 9. Bxc3 {[%emt 0:00:04]} Qb6 {[%emt 0:00:08]} 10. b3 {[%emt 0:00:47]} O-O {[%emt 0:09:29]} 11. O-O {[%emt 0:00:31]} Rd8 {[%emt 0:04:07]} 12. Qe2 {[%emt 0:06:30]} Nc6 {[%emt 0:01:27]} 13. Rad1 {[%emt 0:03:09]} Bg4 {[%emt 0:22:32]} 14. h3 {[%emt 0:05:36]} Bh5 {[%emt 0:02:05]} 15. g4 {[%emt 0:02:08]} Bg6 {[%emt 0:00:11]} 16. Bb2 {[%emt 0:02:42]} Nd5 {[%emt 0:07:56]} 17. Nh4 {[%emt 0:04:30]} Na5 {[%emt 0:07:34]} 18. Bxd5 {[%emt 0:01:03]} exd5 {[%emt 0:00:30]} 19. Nxg6 {[%emt 0:01:22]} Qxg6 {[%emt 0:04:12]} 20. Qd3 {[%emt 0:02:36]} Qxd3 {[%emt 0:06:54]} 21. Rxd3 {[%emt 0:00:03]} Re8 {[%emt 0:00:26]} 22. Bc3 {[%emt 0:00:43]} Nc6 {[%emt 0:00:59]} 23. Re1 {[%emt 0:00:05]} Rxe1+ {[%emt 0:03:05]} 24. Bxe1 {[%emt 0:00:02]} Re8 {[%emt 0:00:11]} 25. Kf1 {[%emt 0:00:22]} Re4 {[%emt 0:01:50]} 26. Bc3 {[%emt 0:02:15]} Ne7 {[%emt 0:01:20]} 27. f3 {[%emt 0:00:56]} Re6 {[%emt 0:02:07]} 28. Kf2 {[%emt 0:02:06]} f5 {[%emt 0:04:27]} 29. Re3 {[%emt 0:02:41]} Kf7 {[%emt 0:00:05]} 30. Bb4 {[%emt 0:07:24]} Nc6 {[%emt 0:03:09]} 31. Bc3 {[%emt 0:00:01]} Rh6 {[%emt 0:02:19]} 32. Kg2 {[%emt 0:03:30]} Rf6 {[%emt 0:06:11]} 33. Re2 {[%emt 0:02:55]} fxg4 {[%emt 0:07:51]} 34. fxg4 {[%emt 0:02:38]} Rf4 {[%emt 0:00:04]} 35. Rf2 {[%emt 0:00:19]} Rxf2+ {[%emt 0:00:15]} 36. Kxf2 {[%emt 0:00:02]} g5 {[%emt 0:01:03]} 37. Ke3 {[%emt 0:02:04]} Ne7 {[%emt 0:00:58]} 38. Be1 {[%emt 0:01:31]} Ng8 {[%emt 0:01:23]} 39. Bg3 {[%emt 0:00:15]} c6 {[%emt 0:00:11]} 40. Be5 {[%emt 0:00:15]} Ke6 {[%emt 0:00:29]} 41. Kf3 {[%emt 0:00:31]} Ne7 {[%emt 0:00:17]} 42. Ke3 {[%emt 0:00:24]} Ng6 {[%emt 0:02:08]} 43. Bb8 {[%emt 0:00:12]} a6 {[%emt 0:00:14]} 44. Bg3 {[%emt 0:00:10]} Nf8 {[%emt 0:00:09]} 45. Bc7 {[%emt 0:03:19]} Nd7 {[%emt 0:00:18]} 46. Bd8 {[%emt 0:00:01]} h6 {[%emt 0:00:45]} 47. Bc7 {[%emt 0:00:02]} Kf7 {[%emt 0:01:02]} 48. Bd8 {[%emt 0:01:38]} Nf8 {[%emt 0:00:34]} 49. Bc7 {[%emt 0:00:20]} Ne6 {[%emt 0:00:33]} 50. Be5 {[%emt 0:00:02]} Kg6 {[%emt 0:00:11]} 51. Kd3 {[%emt 0:02:11]} Kf7 {[%emt 0:00:50]} 52. Ke3 {[%emt 0:00:01]} Nf8 {[%emt 0:00:19]} 53. Bc7 {[%emt 0:00:28]} Nd7 {[%emt 0:00:16]} 54. Bd8 {[%emt 0:00:11]} Kg6 {[%emt 0:00:21]} 55. Kf3 {[%emt 0:00:39]} Nf8 {[%emt 0:00:26]} 56. Bc7 {[%emt 0:00:19]} Ne6 {[%emt 0:01:11]} 57. Be5 {[%emt 0:00:02]} Nd8 {[%emt 0:00:34]} 58. Ke3 {[%emt 0:00:32]} Nf7 {[%emt 0:00:30]} 59. Bc7 {[%emt 0:00:25]} Kf6 {[%emt 0:00:16]} 60. Bg3 {[%emt 0:00:13]} Ke6 {[%emt 0:00:15]} 61. Bc7 {[%emt 0:00:09]} Nh8 {[%emt 0:00:23]} 62. Be5 {[%emt 0:00:55]} Nf7 {[%emt 0:00:18]} 63. Bc7 {[%emt 0:00:01]} Kd7 {[%emt 0:01:22]} 1/2-1/2

[Event "48th Indian U15-ch Girls 2023"]
[Site "Jalgaon"]
[Date "2024.01.02"]
[Round "9.3"]
[White "Aamuktha Guntaka"]
[Black "Sachi Jain"]
[Result "1/2-1/2"]
[ECO "C41"]
[WhiteElo "1532"]
[BlackElo "1844"]
[Annotator "NA RC"]
[PlyCount "93"]
[EventDate "2023.12.30"]
[EventType "swiss"]
[EventCountry "IND"]
[SourceTitle "playchess.com"]
[Source "ChessBase"]
[SourceQuality "1"]
[TimeControl "5400+30"]

1. e4 {[%emt 0:01:27]} e5 {[%emt 0:00:29]} 2. Nf3 {[%emt 0:00:07]} d6 {[%emt 0:00:10]} 3. d4 {[%emt 0:00:28]} Nd7 {[%emt 0:00:02]} 4. Nc3 {[%emt 0:00:46]} c6 {[%emt 0:00:23]} 5. Be3 {[%emt 0:00:44]} Be7 {[%emt 0:00:07]} 6. Be2 {[%emt 0:01:41]} Ngf6 {[%emt 0:00:12]} 7. h3 {[%emt 0:01:10]} Qc7 {[%emt 0:00:12]} 8. a4 {[%emt 0:01:49]} h6 {[%emt 0:02:12]} 9. Qd2 {[%emt 0:03:01]} Nf8 {[%emt 0:01:54]} 10. Bc4 {[%emt 0:08:04]} Bd7 {[%emt 0:08:55]} 11. Qe2 {[%emt 0:11:45]} g5 {[%emt 0:01:15]} 12. Nd2 {[%emt 0:19:28]} Ng6 {[%emt 0:01:59]} 13. g3 {[%emt 0:02:14]} Qc8 {[%emt 0:02:34]} 14. Qf1 {[%emt 0:01:29]} Nh7 {[%emt 0:06:33]} 15. dxe5 {[%emt 0:06:10]} dxe5 {[%emt 0:02:40]} 16. O-O-O {[%emt 0:02:03]} Qc7 {[%emt 0:02:04]} 17. Nb3 {[%emt 0:02:54]} Nhf8 {[%emt 0:04:50]} 18. Nc5 {[%emt 0:05:48]} Bxc5 {[%emt 0:01:19]} 19. Bxc5 {[%emt 0:00:06]} Ne6 {[%emt 0:00:03]} 20. Bd6 {[%emt 0:02:33]} Qb6 {[%emt 0:01:59]} 21. Bxe6 {[%emt 0:03:46]} Bxe6 {[%emt 0:02:32]} 22. Ba3 {[%emt 0:02:43]} Rd8 {[%emt 0:00:45]} 23. Qg2 {[%emt 0:02:40]} Rd7 {[%emt 0:01:09]} 24. Qf3 {[%emt 0:02:37]} Kd8 {[%emt 0:03:53]} (24... Rg8 $16 {was worth a try.}) 25. Qf6+ {[%emt 0:00:51]} Kc8 {[%emt 0:00:01]} 26. Rxd7 {[%emt 0:01:09]} Kxd7 {[%emt 0:00:01]} 27. Rd1+ {[%emt 0:00:31]} Kc8 {[%emt 0:00:05]} 28. Bd6 {[%emt 0:01:27]} Re8 {[%emt 0:05:29]} 29. Rd2 {[%emt 0:01:37]} Rd8 {[%emt 0:01:01]} 30. b3 {[%emt 0:02:56]} Rd7 {[%emt 0:00:47]} 31. Nd1 {[%emt 0:01:14]} Qd8 {[%emt 0:02:10]} 32. Qxd8+ {[%emt 0:01:02]} Kxd8 {[%emt 0:00:15]} 33. g4 {[%emt 0:01:05]} f6 {[%emt 0:00:58]} 34. f3 {[%emt 0:00:29]} Ke8 {[%emt 0:01:11]} (34... Nh4 $1 $15) 35. Bc5 $11 {[%emt 0:01:17]} b6 {[%emt 0:02:41]} 36. Be3 {[%emt 0:00:51]} Nh4 {[%emt 0:01:07]} 37. Rf2 {[%emt 0:00:09]} c5 {[%emt 0:01:10]} 38. c4 {[%emt 0:01:07]} Bf7 {[%emt 0:11:08]} 39. Kc2 {[%emt 0:01:45]} Bg6 {[%emt 0:09:05]} 40. Nc3 {[%emt 0:00:32]} Kf7 {[%emt 0:00:13]} 41. Rf1 {[%emt 0:00:55]} Ng2 {[%emt 0:00:32]} 42. Bc1 {[%emt 0:01:31]} Nh4 {[%emt 0:02:03]} 43. Be3 {[%emt 0:00:16]} Ke6 {[%emt 0:00:41]} 44. Bd2 {[%emt 0:02:10]} h5 {[%emt 0:01:33]} 45. Be1 {[%emt 0:01:16]} Ng2 {[%emt 0:00:48]} 46. Bd2 {[%emt 0:00:28]} Rh7 {[%emt 0:03:50]} 47. Rf2 {[%emt 0:00:20]} 1/2-1/2

[Event "48th Indian U15-ch Girls 2023"]
[Site "Jalgaon"]
[Date "2024.01.02"]
[Round "9.4"]
[White "Akshaya Sathi"]
[Black "Saparya Ghosh"]
[Result "1-0"]
[ECO "B33"]
[WhiteElo "1542"]
[BlackElo "1662"]
[Annotator "NA RC"]
[PlyCount "129"]
[EventDate "2023.12.30"]
[EventType "swiss"]
[EventCountry "IND"]
[SourceTitle "playchess.com"]
[Source "ChessBase"]
[SourceQuality "1"]
[TimeControl "5400+30"]

1. e4 {[%emt 0:00:35]} c5 {[%emt 0:00:22]} 2. Nf3 {[%emt 0:00:20]} Nc6 {[%emt 0:00:06]} 3. d4 {[%emt 0:00:07]} cxd4 {[%emt 0:00:06]} 4. Nxd4 {[%emt 0:00:07]} Nf6 {[%emt 0:00:07]} 5. Nc3 {[%emt 0:00:12]} e5 {[%emt 0:00:04]} 6. Ndb5 {[%emt 0:00:49]} d6 {[%emt 0:00:07]} 7. Bg5 {[%emt 0:00:18]} a6 {[%emt 0:00:05]} 8. Na3 {[%emt 0:00:07]} b5 {[%emt 0:00:07]} 9. Nd5 {[%emt 0:00:05]} Be7 {[%emt 0:00:06]} 10. Bxf6 {[%emt 0:00:13]} Bxf6 {[%emt 0:00:04]} 11. c3 {[%emt 0:00:12]} Rb8 {[%emt 0:00:04]} 12. Nc2 {[%emt 0:00:10]} Bg5 {[%emt 0:00:05]} 13. a4 {[%emt 0:00:36]} bxa4 {[%emt 0:00:07]} 14. Ncb4 {[%emt 0:00:45]} Nxb4 {[%emt 0:00:10]} 15. cxb4 {[%emt 0:00:45]} Bd7 {[%emt 0:01:44]} 16. Bxa6 {[%emt 0:00:47]} O-O {[%emt 0:00:18]} 17. O-O {[%emt 0:00:30]} Bc6 {[%emt 0:03:08]} 18. Rxa4 {[%emt 0:04:10]} Bxa4 {[%emt 0:18:33]} 19. Qxa4 {[%emt 0:00:22]} Ra8 {[%emt 0:01:00]} 20. Qc6 {[%emt 0:09:39]} Qb8 {[%emt 0:10:19]} 21. b5 {[%emt 0:08:48]} Ra7 {[%emt 0:00:50]} 22. Rd1 {[%emt 0:14:16]} f5 {[%emt 0:10:41]} 23. Nc3 {[%emt 0:19:43]} Raf7 {[%emt 0:11:54]} 24. b6 {[%emt 0:06:53]} Kh8 {[%emt 0:07:27]} 25. Qxd6 {[%emt 0:07:08]} fxe4 {[%emt 0:12:57]} 26. Qxb8 {[%emt 0:03:46]} Rxb8 {[%emt 0:00:05]} 27. Nxe4 {[%emt 0:01:12]} Bf6 {[%emt 0:06:19]} 28. Rc1 {[%emt 0:05:05]} h6 {[%emt 0:04:38]} 29. b7 {[%emt 0:07:33]} Rfxb7 {[%emt 0:05:03]} 30. Bxb7 {[%emt 0:00:25]} Rxb7 {[%emt 0:00:02]} 31. Nxf6 {[%emt 0:00:23]} gxf6 {[%emt 0:00:00]} 32. Rb1 {[%emt 0:00:17]} Rb3 {[%emt 0:00:46]} 33. Kf1 {[%emt 0:00:25]} Kg7 {[%emt 0:00:22]} 34. Ke2 {[%emt 0:00:13]} Kg6 {[%emt 0:00:32]} 35. Kd2 {[%emt 0:00:30]} Kf5 {[%emt 0:00:09]} 36. Kc2 {[%emt 0:00:16]} Rb4 {[%emt 0:00:11]} 37. Kc3 {[%emt 0:00:18]} Rf4 {[%emt 0:00:15]} 38. f3 {[%emt 0:01:24]} Rh4 {[%emt 0:06:02]} 39. h3 {[%emt 0:05:50]} Ke6 {[%emt 0:02:31]} 40. Rd1 {[%emt 0:02:48]} Ra4 {[%emt 0:01:01]} 41. b4 {[%emt 0:01:37]} h5 {[%emt 0:01:05]} 42. b5 {[%emt 0:00:42]} Ra3+ {[%emt 0:01:15]} 43. Kc4 {[%emt 0:00:45]} Ra2 {[%emt 0:00:14]} 44. g4 {[%emt 0:00:38]} hxg4 {[%emt 0:00:55]} 45. hxg4 {[%emt 0:00:03]} Rb2 {[%emt 0:00:29]} 46. Kc5 {[%emt 0:00:46]} Rc2+ {[%emt 0:00:06]} 47. Kb6 {[%emt 0:00:24]} Rc3 {[%emt 0:00:10]} 48. Rf1 {[%emt 0:00:14]} f5 {[%emt 0:00:32]} 49. gxf5+ {[%emt 0:00:29]} Kxf5 {[%emt 0:00:03]} 50. Kb7 {[%emt 0:00:11]} Kf4 {[%emt 0:01:18]} 51. b6 {[%emt 0:00:18]} Ke3 {[%emt 0:00:32]} 52. Re1+ {[%emt 0:01:01]} Kd4 {[%emt 0:00:37]} 53. Rf1 {[%emt 0:00:26]} Ke3 {[%emt 0:00:12]} 54. Rh1 {[%emt 0:00:32]} Rc5 {[%emt 0:00:59]} 55. Ka6 {[%emt 0:00:51]} Rc2 {[%emt 0:00:32]} 56. Rb1 {[%emt 0:00:30]} Ra2+ {[%emt 0:00:25]} 57. Kb5 {[%emt 0:00:24]} Ra8 {[%emt 0:00:33]} 58. b7 {[%emt 0:00:11]} Rf8 {[%emt 0:00:31]} 59. Rb3+ {[%emt 0:00:07]} Kd4 {[%emt 0:00:30]} 60. Ka6 {[%emt 0:00:13]} Rf6+ {[%emt 0:00:30]} 61. Ka5 {[%emt 0:00:29]} Rf8 {[%emt 0:00:28]} 62. b8=Q {[%emt 0:00:07]} Rxb8 {[%emt 0:00:04]} 63. Rxb8 {[%emt 0:00:04]} Ke3 {[%emt 0:00:05]} 64. Rb3+ {[%emt 0:00:04]} Kf4 {[%emt 0:00:13]} 65. Kb5 {[%emt 0:00:04]} 1-0

[Event "48th Indian U15-ch Girls 2023"]
[Site "Jalgaon"]
[Date "2024.01.02"]
[Round "9.5"]
[White "Sneha Halder"]
[Black "Drishtee Ghosh"]
[Result "1-0"]
[ECO "D05"]
[WhiteElo "1766"]
[BlackElo "1605"]
[Annotator "NA RC"]
[PlyCount "59"]
[EventDate "2023.12.30"]
[EventType "swiss"]
[EventCountry "IND"]
[SourceTitle "playchess.com"]
[Source "ChessBase"]
[SourceQuality "1"]
[TimeControl "5400+30"]

1. d4 {[%emt 0:00:22]} Nf6 {[%emt 0:00:03]} 2. Nf3 {[%emt 0:00:04]} d5 {[%emt 0:00:06]} 3. e3 {[%emt 0:00:03]} e6 {[%emt 0:00:04]} 4. Bd3 {[%emt 0:00:02]} Bd6 {[%emt 0:00:11]} 5. b3 {[%emt 0:00:23]} O-O {[%emt 0:00:34]} 6. Bb2 {[%emt 0:00:01]} b6 {[%emt 0:00:55]} 7. Nbd2 {[%emt 0:00:12]} Bb7 {[%emt 0:00:25]} 8. Ne5 {[%emt 0:00:13]} c5 {[%emt 0:04:16]} 9. f4 {[%emt 0:00:47]} Ne4 {[%emt 0:04:28]} 10. Bxe4 {[%emt 0:04:58]} dxe4 {[%emt 0:00:36]} 11. Qg4 {[%emt 0:00:55]} f5 {[%emt 0:07:15]} 12. Qg3 {[%emt 0:00:21]} Bxe5 {[%emt 0:06:02]} 13. dxe5 {[%emt 0:00:36]} b5 {[%emt 0:02:47]} 14. O-O-O {[%emt 0:01:11]} Qc7 {[%emt 0:04:22]} 15. Qg5 {[%emt 0:03:28]} Nc6 {[%emt 0:04:03]} 16. g4 {[%emt 0:00:50]} Ne7 {[%emt 0:02:32]} 17. Nf1 {[%emt 0:04:14]} a5 {[%emt 0:06:25]} 18. Ng3 {[%emt 0:04:28]} c4 {[%emt 0:02:40]} 19. bxc4 {[%emt 0:00:52]} Rac8 {[%emt 0:03:17]} 20. Rhg1 {[%emt 0:01:00]} Qxc4 {[%emt 0:02:51]} 21. Rd2 {[%emt 0:01:25]} Rc7 {[%emt 0:17:51]} 22. Rdg2 {[%emt 0:08:14]} Nd5 {[%emt 0:04:09]} 23. Nxf5 {[%emt 0:28:10]} exf5 {[%emt 0:00:53]} 24. gxf5 {[%emt 0:00:11]} Nxe3 {[%emt 0:05:37]} 25. Qxg7+ {[%emt 0:00:07]} Rxg7 {[%emt 0:00:08]} 26. Rxg7+ {[%emt 0:00:02]} Kh8 {[%emt 0:00:00]} 27. Rc7 {[%emt 0:00:13]} Nd5 {[%emt 0:03:58]} 28. e6+ {[%emt 0:00:32]} Nf6 {[%emt 0:03:06]} 29. Rxc4 {[%emt 0:00:14]} bxc4 {[%emt 0:00:19]} 30. e7 {[%emt 0:00:01]} 1-0